Cogmind - Beta 16 @@@ ROGUE MODE // 2026.01.29 @ 21:37:25 Player: Ly0ko Result: Destroyed by as-09065 with Assembled Blade Performance ------------- Evolutions (0) 0 Regions Visited (2) 400 Robots Destroyed (9) 45 Value Destroyed (244) 244 Prototype IDs (0) 0 Alien Tech Used (0) 0 Bonus (0) 0 TOTAL SCORE: 689 Bonus ------- None Cogmind --------- Core Integrity 0/250 Matter 300/300 Energy 125/125 System Corruption 0% Temperature Cool (10) Movement Core (250) Ox4 Location -10/Mines Parts ------- > --- POWER (1) -------- Light Ion Engine > --- PROPULSION (2) --- (None) > --- UTILITY (2) ------ Medium Storage Unit > --- WEAPON (2) ------- Small Laser Light Assault Rifle > --- INVENTORY (10) --- Datajack Peak State ------------ > --- POWER ------------ (None) > --- PROPULSION ------- Flight Unit Flight Unit > --- UTILITY ---------- Cooling System Small Storage Unit > --- WEAPON ----------- Particle Gun Mini Grenade Launcher > --- INVENTORY -------- Medium Storage Unit Small Laser Light Assault Rifle Light Assault Rifle Datajack [Rating: 9] Favorites ----------- Power Light Ion Engine Engine Light Ion Engine Propulsion Aluminum Leg Leg Aluminum Leg Flight Unit Flight Unit Utility Small Storage Unit Device Cooling System Storage Small Storage Unit Weapon Light Assault Rifle Energy Gun Small Laser Ballistic Gun Light Assault Rifle Launcher Mini Grenade Launcher Special Melee Weapon Datajack Build | -11 -10 -10 ------- Run | Yrd Mat Min Slots Evolved . | . . . Power . | . . . Propulsion . | . . . Utility . | . . . Weapon . | . . . Parts Attached 18 | 7 6 5 Power 4 | 1 1 2 Engine 4 | 1 1 2 Core . | . . . Reactor . | . . . Propulsion 5 | 2 1 2 Treads . | . . . Leg 3 | 2 1 . Wheel . | . . . Hover . | . . . Flight 2 | . . 2 Utility 3 | 1 1 1 Device 1 | . 1 . Storage 2 | 1 . 1 Processor . | . . . Hackware . | . . . Protection . | . . . Artifact . | . . . Weapon 6 | 3 3 . Energy Gun 2 | 1 1 . Energy Cannon . | . . . Ballistic Gun 2 | 2 . . Ballistic Cannon . | . . . Launcher 1 | . 1 . Special Weapon . | . . . Impact Weapon . | . . . Slashing Weapon . | . . . Piercing Weapon . | . . . Special Melee Weapon 1 | . 1 . Unidentified Prototypes . | . . . Parts Lost 7 | . . 7 Power 1 | . . 1 Propulsion 2 | . . 2 Utility 1 | . . 1 Weapon 3 | . . 3 Highest Loss Streak 6 | . . 6 To Critical Strikes . | . . . Average Backups 4 | 1 5 4 Power . | . . . Propulsion . | . . . Utility 1 | . 1 1 Weapon 2 | . 2 2 Tool/Special . | . . . Unused Backups 2 | 1 . 1 Power . | . . . Propulsion 2 | 1 . 1 Utility . | . . . Weapon . | . . . Tool/Special . | . . . Average Slot Usage (%) 75 | . 84 57 Engine 11 | . 14 6 Leg 22 | . 28 9 Flight 1 | . . 4 Device 1 | . . 2 Storage 14 | . 14 14 Energy Gun 4 | . 3 6 Ballistic Gun 7 | . 7 6 Launcher 4 | . 4 4 Special Melee Weapon 8 | . 10 3 Peak Build Rating 9 | 6 8 9 Average Rating 5 | 4 6 4 On Entrance 4 | . 6 6 Avg Prop Armor Cover (%) . | . . . Naked Turns . | . . . Heaviest Build 15 | 10 12 15 Greatest Support 20 | 20 20 20 Greatest Overweight (x) 4 | . . 4 Average Overweight (x) . | . . . Largest Inventory Capacity 10 | 8 8 10 Average Capacity 8 | 7 8 8 Most Carried 8 | 4 8 8 Average Carried 4 | 1 5 4 Final Capacity 10 | 8 8 10 Final Carried 8 | 2 8 1 Class Distribution -------------------- 100% | Mutant Dominant Class ---------------- Mutant | -10/Materials Mutant | -10/Mines Resources | -11 -10 -10 ----------- Run | Yrd Mat Min Matter Collected 557 | 270 95 192 Remotely . | . . . Salvage Created 162 | . 101 61 Parts 16 | . 8 8 Haulers Intercepted . | . . . Recyclers Shooed . | . . . Parts Field Recycled . | . . . Retrieved Matter . | . . . Parts Self-Destructed . | . . . Prevented . | . . . Parts Restored . | . . . Kills | -11 -10 -10 ------- Run | Yrd Mat Min Combat Hostiles Destroyed 9 | . 2 7 Guns 6 | . 2 4 AOE 3 | . . 3 Classes Destroyed 6 | . 2 4 Worker 1 | . . 1 Watcher 1 | . 1 . Swarmer 3 | . . 3 Grunt 2 | . 2 . Demolisher 2 | . . 2 Assembled 2 | . . 2 Best Kill Streak 4 | . 2 4 Combat Bots Only 3 | . 2 3 Max Kills in Single Turn 3 | . 1 3 Gunslinging . | . . . Exploded 2 | . . 2 Melee . | . . . Uniques/NPCs Destroyed . | . . . Combat | -11 -10 -10 -------- Run | Yrd Mat Min Hostile Shots Fired 55 | . 27 28 Missed 17 | . 13 4 Hits 38 | . 14 24 Melee 3 | . . 3 Projectile 35 | . 14 21 AOE 11 | . . 11 Damage Taken 884 | . 178 706 Core 270 | . 11 259 Absorbed by Shields . | . . . Core Remaining (%) 100 | 100 . . Volleys Fired 33 | . 18 15 Largest 2 | . 2 2 Hottest 95 | . 40 95 Shots Fired 59 | . 32 27 Gun 53 | . 31 22 Cannon . | . . . Launcher 6 | . 1 5 Special . | . . . Kinetic 42 | . 31 11 Thermal 11 | . . 11 Explosive 6 | . 1 5 Electromagnetic . | . . . Robot Hit Streak 6 | . 6 5 Robot Miss Streak 4 | . 4 4 Penetration Max . | . . . Secondary Targets 1 | . . 1 Max Gunslinging Chain 1 | . . 1 Shots Hit Robots 38 | . 24 14 Core Hits 25 | . 8 17 Critical Kills . | . . . Critical Parts Destroyed . | . . . Critical Strikes . | . . . Melee Attacks 9 | . 7 2 Impact . | . . . Slashing . | . . . Piercing . | . . . Sneak Attacks 5 | . 3 2 Combat Hostiles . | . . . Follow-up Attacks . | . . . Damage Inflicted 539 | . 185 354 Guns 236 | . 140 96 Cannons . | . . . Explosions 303 | . 45 258 Melee . | . . . Ramming . | . . . Kinetic 179 | . 140 39 Thermal 57 | . . 57 Explosive 303 | . 45 258 Electromagnetic . | . . . Impact . | . . . Slashing . | . . . Piercing . | . . . Highest Corruption . | . . . Average Corruption . | . . . Corruption Purged . | . . . Corruption Blocked . | . . . Overload Shots . | . . . Overflow Damage 17 | . . 17 Projectiles . | . . . Explosions 17 | . . 17 Melee . | . . . Knockbacks . | . . . Impact . | . . . Kinetic . | . . . Secondary . | . . . Self-Inflicted Damage 47 | . . 47 Shots 1 | . . 1 Rammed . | . . . Targets Rammed . | . . . Kicked . | . . . Crushed . | . . . Highest Temperature 40 | . 31 40 Average Temperature 16 | . 12 19 Received Heat Transfer 102 | . 102 . Siege Activations . | . . . Martial Activations . | . . . Shielding Activations . | . . . Robots Disrupted . | . . . Combat Hostiles . | . . . Robots Corrupted . | . . . Combat Hostiles . | . . . Parts Fried . | . . . Impact Corruptions . | . . . Robots Melted . | . . . Combat Hostiles . | . . . Parts Melted . | . . . Heat Transferred 125 | . . 125 Parts Sabotaged . | . . . Parts Stolen . | . . . Parts Stripped . | . . . Power Chain Reactions . | . . . Alert | -11 -10 -10 ------- Run | Yrd Mat Min Maximum Alert Level . | . . . Low Security (%) 100 | 100 100 100 Level 1 . | . . . Level 2 . | . . . Level 3 . | . . . Level 4 . | . . . Level 5 . | . . . High Security . | . . . Max Security . | . . . Peak Influence 78 | . 40 78 Initial . | . . . Average 10 | . 5 24 Influence Increases 244 | . 85 159 Destroy 0b10 Robot/C 140 | . 40 100 Destroy 0b10 Robot/NC 10 | . 5 5 Destroy Leader 32 | . 12 20 Successful Hack 6 | . 6 . Disable Machine 15 | . 15 . Destroy Structure 41 | . 7 34 Influence Decreases 244 | . 85 159 Time Decay 174 | . 85 89 Lost Part 70 | . . 70 Squads Dispatched . | . . . Investigation . | . . . Extermination . | . . . Reinforcement . | . . . Assault . | . . . Garrison . | . . . Intercept . | . . . Searches Triggered . | . . . Construction Impeded . | . . . Haulers Reinforced . | . . . Active Scanning Responses . | . . . Cargo Convoy Interrupts . | . . . Stealth | -11 -10 -10 --------- Run | Yrd Mat Min Distress Signals . | . . . Communications Jammed . | . . . Distress Signals . | . . . Times Spotted 11 | . 3 8 Peak Tracking Total 3 | . 2 3 Tactical Retreats . | . . . Traps | -11 -10 -10 ------- Run | Yrd Mat Min Traps Triggered . | . . . Indirectly . | . . . Trap Hack Attempts . | . . . Triggered . | . . . Disarmed . | . . . Reprogrammed . | . . . Reused . | . . . Traps Extracted . | . . . Installed . | . . . Triggered . | . . . Machines | -11 -10 -10 ---------- Run | Yrd Mat Min Machines Disabled 1 | . 1 . Max in Single Turn 1 | . 1 . Machines Repaired . | . . . Machines Dismantled . | . . . Machines Sabotaged . | . . . Overloaded Fab Kills . | . . . Hacking | -11 -10 -10 --------- Run | Yrd Mat Min Machines Accessed 3 | . 3 . Terminals 2 | . 2 . Fabricators . | . . . Repair Stations . | . . . Recycling Units 1 | . 1 . Scanalyzers . | . . . Garrison Access . | . . . Total Hacks 11 | . 11 . Successful 10 | . 10 . Failed 1 | . 1 . Catastrophic . | . . . Database Lockouts . | . . . Manual . | . . . Terminals 7 | . 7 . Fabricators . | . . . Repair Stations . | . . . Recycling Units 4 | . 4 . Scanalyzers . | . . . Garrison Access . | . . . Terminal Hacks 6 | . 6 . Record 4 | . 4 . Locate Traps 1 | . 1 . Dispatch Records 1 | . 1 . Fabricator Hacks . | . . . Repair Station Hacks . | . . . Recycling Unit Hacks 4 | . 4 . Process 1 | . 1 . Report Inventory 1 | . 1 . Retrieve Matter 1 | . 1 . Retrieve Components 1 | . 1 . Scanalyzer . | . . . Garrison Access Hacks . | . . . Unauthorized Hacks . | . . . Terminals . | . . . Fabricators . | . . . Repair Stations . | . . . Recycling Units . | . . . Scanalyzers . | . . . Garrison Access . | . . . Data Cores Recovered . | . . . Used . | . . . Hacking Detections 2 | . 2 . Full Trace Events 1 | . 1 . Feedback Events . | . . . Feedback Blocked . | . . . Robot Schematics Acquired . | . . . Robots Built . | . . . Authchips . | . . . Time . | . . . Total Robot Build Rating . | . . . Part Schematics Acquired . | . . . Parts Built . | . . . Authchips . | . . . Time . | . . . Total Part Build Rating . | . . . Part Studies Acquired . | . . . Parts Repaired . | . . . Time . | . . . Parts Recycled . | . . . Recycled Matter 109 | . 109 . Retrieved Matter 109 | . 109 . Retrieved Components . | . . . Parts Scanalyzed . | . . . Part Schematics Acquired . | . . . Parts Damaged . | . . . Bothacking | -11 -10 -10 ------------ Run | Yrd Mat Min Used RIF Installer . | . . . Robots Hacked 4 | . 3 1 Non-combat 4 | . 3 1 Combat . | . . . Robot Hacks Applied 5 | . 4 1 parse_system 2 | . 1 1 no_distress 2 | . 2 . find_recycling 1 | . 1 . Relay Couplers Released . | . . . Fabnet Peak Effective % . | . . . Robots Rewired . | . . . Allies Hacked . | . . . Hacks Repelled . | . . . Allies | -11 -10 -10 -------- Run | Yrd Mat Min Total Allies . | . . . Largest Group . | . . . Highest-Rated Group . | . . . Highest-Rated Ally . | . . . Total Orders . | . . . Ally Attacks . | . . . Total Damage . | . . . Kills . | . . . Allies Corrupted . | . . . Allies Melted . | . . . Intel | -11 -10 -10 ------- Run | Yrd Mat Min Active Infowar (turns) . | . . . Robot Analysis Total . | . . . Derelict Logs Recovered 1 | . . 1 Drone Launches . | . . . Drone Recoveries . | . . . Exploration | -11 -10 -10 ------------- Run | Yrd Mat Min Turns Passed 896 | 72 558 266 Spaces Moved 611 | 56 401 154 Core 82 | 16 . 66 Treads . | . . . Legs 499 | 40 401 58 Wheels . | . . . Hover . | . . . Flight 30 | . . 30 Fastest Speed 50 | 50 120 100 Average Speed 120 | 100 120 129 Slowest Speed 250 | 120 120 250 Overloaded Moves . | . . . Propulsion Burnouts . | . . . Robots Hopped . | . . . Potential Cave-ins . | . . . Cave-ins Triggered . | . . . Exploration Rate (%) 25 | 3 37 36 Regions Visited 2 Branch Regions 1 Pre-discovered Areas . | . . . Known Exits Taken . | . . . Unknown Exits Taken 2 | 1 1 . Scrap Searched . | . . . Spaces Dug . | . . . Terrain Destroyed 50 | . 6 44 Melee . | . . . Projectile . | . . . AOE 50 | . 6 44 Terrain Rammed . | . . . Walls Destroyed . | . . . Machines Disabled . | . . . Actions | -11 -10 -10 --------- Run | Yrd Mat Min Total 723 | 73 451 199 Wait . | . . . Move 609 | 55 400 154 Hop . | . . . Pick Up 21 | 9 8 4 Fast Attach . | . . . Attach 25 | 7 5 13 Detach 11 | 1 6 4 Swap 6 | . 4 2 Drop 9 | 1 3 5 Fire 33 | . 18 15 Melee 9 | . 7 2 Ram . | . . . Kick . | . . . Crush . | . . . Escape Stasis . | . . . Rewire . | . . . Trap . | . . . Miscellaneous . | . . . Route ------- -11/Scrapyard -10/Materials -10/Mines History --------- Turn | Location | Event 5 | -11/Scrapyard | Discovered new exit (range 16) 73 | -11/Scrapyard | Entered Materials 300 | -10/Materials | Build established: Mutant 481 | -10/Materials | Discovered new exit (range 15) 631 | -10/Materials | Entered Mines 644 | -10/Mines | Assembled infested the area 766 | -10/Mines | Core integrity fell below 50% 800 | -10/Mines | Lost 6 parts (2n1u3w) 870 | -10/Mines | Learned Materials stockpile data 893 | -10/Mines | Core integrity fell below 20% 897 | -10/Mines | Destroyed by as-09065 with Assembled Blade Last Messages --------------- The unstable cave ceiling collapses. D-53 Grenadier destroyed. K-01 Serf collects debris. The unstable cave ceiling collapses. R-06 Scavenger collects Lgt. Ion Engine. The unstable cave ceiling collapses. Acquired 81 matter. Acquired Lgt. Ion Engine. Dropped Sml. Storage Unit. as-40623 destroyed. Acquired 44 matter. Acquired Lgt. Ion Engine. Dropped Lgt. Ion Engine. Acquired derelict log, extracted data. Data stored: Materials stockpile data. as-89653 destroyed. Acquired 26 matter. Acquired 16 matter. Acquired 1 matter. [Achievement: First Step to Greatness] Map ----- +----------------------------------------------------+ | ????????????????????????????????????????? | | ????????????????????????????????????????? | | ????????????????????????????????????????? | | ????????????????????????????????????????? | | #???????????????????????????????????????? | | #???????????????????????????????????????? | | #???????????????????????????????????????? | | #???????????????????????????????????????? | | #???????????????????????????????????????? | | #???????????????????????????????????????? | | #????????????????????????#??????????????? | | ????????????????????????? #?????????????? | | ????????????????????????? ##? ????????? | | #???????????????????????? ## ##??????? | | ????????????????????????? # ?????? | | ????????????????????????? ?????? | | ????????????????????????? ??????? | | ????????????????????????# ???????? | | #??????????????????????? ????????? | | #????????????###???????? ?????????? | | ####????????? #???????? #??????????? | | ##????????# #???????? #???????????? | | #????????# #????????# #????????????? | | #????????# #?######## !#????????????? | | ##????????#!#?#*! a %#????????????? | | ###########!###%==* @=#????????????? | | !=%!*=%==%####### ?????? | | ##############%##???????? =%* #?? | | ## ##????????????#=#???????????#####! #?? | | ?###?????????????#|#????????????????????? | | ?????????????????**#????????????????????? | | ?????????????????###????????????????????? | | ????????????????????????????????????????? | | ????????????????????????????????????????? | | ????????????????????????????????????????? | | ????????????????????????????????????????? | | ????????????????????????????????????????? | | ????????????????????????????????????????? | | ????????????????????????????????????????? | | ????????????????????????????????????????? | | ????????????????????????????????????????? | | ????????????????????????????????????????? | | ????????????????????????????????????????? | | ????????????????????????????????????????? | | ????????????????????????????????????????? | | ????????????????????????????????????????? | | ????????????????????????????????????????? | | ????????????????????????????????????????? | | ????????????????????????????????????????? | | ????????????????????????????????????????? | +----------------------------------------------------+ Best States ------------- Heat Dissipation 47 Energy Generation 10 Energy Capacity 125 Matter Stores 300 Matter Capacity 300 Sight Range 16 Terrain Scan Density 10 Evasion (%) 55 Item Schematics ----------------- None Robot Schematics ------------------ None Fabricated ------------ Nothing Repaired ---------- Nothing Studied --------- None Alien Tech Used ----------------- None Achievements -------------- First Step to Greatness Junior Dev Not Today, Chutes Organ Harvest Challenges ------------ None Game ------ Seed VariableAssemblySuit Manual? 0 Play Time 00:15:46 Cumulative 1.0 hours Start 2026.01.29 @ 21:22:25 End 2026.01.29 @ 21:37:25 Sessions 1 Manual Loads 0 Difficulty Rogue Special Mode None Game No. 5 Rogue 2 Adventurer 0 Explorer 3 Win Type - Total 0 Types 0/0/0/0/0/0/0/0/0/0 Lore% 1 Gallery% 4 Achievement% 5 Wizard Run 0 Options --------- Layout 0 ASCII 0 Keyboard 0 Movement Arrows Keybinds 0 Fullscreen 1 Font 24/Smallcaps Map View 76x50 Zoom Use 0% Tactical HUD 0 Map Filters NONE Filters NONE Steam 1 RUN: 122e6240-7bce-47d7-b457-63b5a1cbc1f5